Cogmind - Beta 17 @@@ ROGUE MODE // 2026.08.12 @ 12:06:52 Player: Khunlaan Result: Destroyed by 6I-4QP(j) with Overtuned Pulse Rifle Performance ------------- Evolutions (0) 0 Regions Visited (3) 600 Robots Destroyed (42) 210 Value Destroyed (892) 892 Prototype IDs (8) 160 Alien Tech Used (0) 0 Bonus (800) 800 TOTAL SCORE: 2662 Bonus ------- Registered with UFD 300 Met Optimus in HQ 500 Cogmind --------- Core Integrity 0/250 Matter 270/300 Energy 140/140 System Corruption 0% Temperature Warm (154) Movement Core (950) Ox18 Location -9/Scraptown Parts ------- > --- POWER (1) -------- Light Deuterium Engine > --- PROPULSION (2) --- (None) > --- UTILITY (2) ------ High-capacity Storage Unit Makeshift Light Armor Plating > --- WEAPON (2) ------- Barrage Gun Barrage Gun > --- INVENTORY (20) --- Wheel Wheel Matter Compressor (250) Subdweller Optics Seismic Detector Advanced Targeting Computer ECM Suite EM Disruption Field Makeshift Hacking Suite A0-MCA's Component Scanner Heavy Assault Rifle Light Cannon Rocket Launcher Datajack CPS Tube (2) Multitool DRS Beacon (Ready) Peak State ------------ > --- POWER ------------ Light Deuterium Engine > --- PROPULSION ------- Wheel Armored Wheel > --- UTILITY ---------- High-capacity Storage Unit Makeshift Light Armor Plating > --- WEAPON ----------- Barrage Gun Barrage Gun > --- INVENTORY -------- Wheel Wheel Matter Compressor Subdweller Optics Seismic Detector Advanced Targeting Computer ECM Suite EM Disruption Field Makeshift Hacking Suite A0-MCA's Component Scanner Heavy Assault Rifle Light Cannon Rocket Launcher Datajack CPS Tube Multitool DRS Beacon [Rating: 21] Favorites ----------- Power Ion Engine Engine Ion Engine Propulsion Wheel Wheel Wheel Utility High-capacity Storage Unit Device Seismic Detector Storage High-capacity Storage Unit Protection Makeshift Light Armor Plating Weapon Assault Rifle Energy Gun Small Laser Ballistic Gun Assault Rifle Ballistic Cannon Light Cannon Launcher Rocket Launcher Special Melee Weapon Datajack Build | -11 -10 -10 -9 ------- Run | Yrd Mat Sub Scr Slots Evolved . | . . . . Power . | . . . . Propulsion . | . . . . Utility . | . . . . Weapon . | . . . . Parts Attached 37 | 7 13 8 9 Power 3 | 1 1 . 1 Engine 3 | 1 1 . 1 Core . | . . . . Reactor . | . . . . Propulsion 11 | 2 3 2 4 Treads . | . . . . Leg . | . . . . Wheel 11 | 2 3 2 4 Hover . | . . . . Flight . | . . . . Utility 8 | 2 3 3 . Device 4 | 1 2 1 . Storage 3 | 1 1 1 . Processor . | . . . . Hackware . | . . . . Protection 1 | . . 1 . Artifact . | . . . . Weapon 15 | 2 6 3 4 Energy Gun 1 | 1 . . . Energy Cannon . | . . . . Ballistic Gun 9 | 1 4 1 3 Ballistic Cannon 2 | . 1 . 1 Launcher 2 | . . 2 . Special Weapon . | . . . . Impact Weapon . | . . . . Slashing Weapon . | . . . . Piercing Weapon . | . . . . Special Melee Weapon 1 | . 1 . . Unidentified Prototypes . | . . . . Parts Lost 11 | . 1 5 5 Power 1 | . . 1 . Propulsion 6 | . . 2 4 Utility 2 | . 1 1 . Weapon 2 | . . 1 1 Highest Loss Streak 4 | . 1 4 2 To Critical Strikes . | . . . . Average Backups 12 | . 7 13 17 Power . | . . . . Propulsion 2 | . 2 3 2 Utility 4 | . 1 4 6 Weapon 3 | . 2 4 4 Tool/Special . | . . . . Unused Backups 11 | . . . 11 Power . | . . . . Propulsion 1 | . . . 1 Utility 7 | . . . 7 Weapon 1 | . . . 1 Tool/Special 2 | . . . 2 Average Slot Usage (%) 79 | . 93 92 60 Engine 7 | . 14 9 . Wheel 27 | . 28 27 27 Device 4 | . 7 9 . Storage 14 | . 14 14 14 Protection 6 | . . 3 14 Ballistic Gun 12 | . 21 15 2 Ballistic Cannon 3 | . 5 6 . Peak Build Rating 21 | 7 8 11 21 Average Rating 8 | 4 6 8 11 On Entrance 6 | . 7 8 11 Avg Prop Armor Cover (%) 4 | 4 3 . 7 Naked Turns . | . . . . Heaviest Build 55 | 12 52 54 55 Greatest Support 32 | 32 32 26 22 Greatest Overweight (x) 4 | . 1 3 4 Average Overweight (x) 1 | . . 1 1 Largest Inventory Capacity 20 | 8 20 20 20 Average Capacity 17 | 7 14 20 20 Most Carried 20 | . 14 14 20 Average Carried 12 | . 7 13 17 Final Capacity 20 | 8 20 20 20 Final Carried 17 | . 13 13 17 Class Distribution -------------------- 94% | Mutant 4% | Derelict-Mutant Dominant Class ---------------- Mutant | -10/Materials Mutant | -10/Subcaves Mutant | -9/Scraptown Resources | -11 -10 -10 -9 ----------- Run | Yrd Mat Sub Scr Matter Collected 1528 | 142 833 34 519 Remotely . | . . . . Salvage Created 1318 | 24 821 18 455 Parts 84 | 5 57 2 20 Haulers Intercepted 1 | . 1 . . Recyclers Shooed . | . . . . Parts Field Recycled . | . . . . Retrieved Matter . | . . . . Parts Self-Destructed 7 | . . 7 . Prevented . | . . . . Parts Restored . | . . . . Kills | -11 -10 -10 -9 ------- Run | Yrd Mat Sub Scr Combat Hostiles Destroyed 27 | . 18 2 7 Guns 22 | . 15 1 6 Cannons 4 | . 3 . 1 AOE 1 | . . 1 . Classes Destroyed 10 | 1 6 1 2 Worker 10 | . 10 . . Tunneler 1 | 1 . . . Hauler 1 | . 1 . . Operator 1 | . 1 . . Watcher 2 | . 2 . . Swarmer 9 | . 9 . . Grunt 9 | . 9 . . Subdweller 2 | . . 2 . Federalist 1 | . . . 1 Scrapper 6 | . . . 6 Best Kill Streak 8 | 1 8 1 3 Combat Bots Only 4 | . 4 1 3 Max Kills in Single Turn 1 | 1 1 1 1 Gunslinging . | . . . . Exploded 1 | . . 1 . Melee . | . . . . Uniques/NPCs Destroyed . | . . . . Combat | -11 -10 -10 -9 -------- Run | Yrd Mat Sub Scr Hostile Shots Fired 160 | . 82 20 58 Missed 42 | . 24 7 11 Hits 118 | . 58 13 47 Melee 3 | . . . 3 Projectile 115 | . 58 13 44 Critical Strikes 3 | . . . 3 Damage Taken 1501 | . 566 314 621 Core 262 | . 119 51 92 Absorbed by Shields . | . . . . Core Remaining (%) 100 | 100 . . . Volleys Fired 130 | 5 95 12 18 Largest 2 | 2 2 2 2 Hottest 66 | 60 50 66 58 Shots Fired 245 | 10 180 19 36 Gun 209 | 10 161 10 28 Cannon 27 | . 19 . 8 Launcher 9 | . . 9 . Special . | . . . . Kinetic 231 | 5 180 10 36 Thermal 5 | 5 . . . Explosive 9 | . . 9 . Electromagnetic . | . . . . Robot Hit Streak 9 | 4 8 9 7 Robot Miss Streak 6 | 4 4 6 2 Penetration Max . | . . . . Secondary Targets 1 | . . . 1 Max Gunslinging Chain 1 | . . . 1 Shots Hit Robots 136 | 6 95 10 25 Core Hits 51 | 1 40 3 7 Critical Kills . | . . . . Critical Parts Destroyed . | . . . . Critical Strikes 1 | . . . 1 Blast 1 | . . . 1 Melee Attacks 6 | . 6 . . Impact . | . . . . Slashing . | . . . . Piercing . | . . . . Sneak Attacks 6 | . 6 . . Combat Hostiles . | . . . . Follow-up Attacks . | . . . . Damage Inflicted 2094 | 67 1220 380 427 Guns 1548 | 67 1052 118 311 Cannons 284 | . 168 . 116 Explosions 262 | . . 262 . Melee . | . . . . Ramming . | . . . . Kinetic 1799 | 34 1220 118 427 Thermal 33 | 33 . . . Explosive 262 | . . 262 . Electromagnetic . | . . . . Impact . | . . . . Slashing . | . . . . Piercing . | . . . . Highest Corruption . | . . . . Average Corruption . | . . . . Corruption Purged . | . . . . Corruption Blocked . | . . . . Overload Shots . | . . . . Overflow Damage 8 | . . 8 . Projectiles . | . . . . Explosions 8 | . . 8 . Melee . | . . . . Knockbacks 1 | . 1 . . Impact . | . . . . Kinetic 1 | . 1 . . Secondary . | . . . . Self-Inflicted Damage 47 | . . 47 . Shots 2 | . . 2 . Rammed 2 | 2 . . . Targets Rammed 2 | 2 . . . Kicked . | . . . . Crushed . | . . . . Highest Temperature 142 | . 7 . 142 Average Temperature 30 | . 3 . 34 Received Heat Transfer 443 | . 159 6 278 Siege Activations . | . . . . Martial Activations . | . . . . Shielding Activations . | . . . . Robots Disrupted . | . . . . Combat Hostiles . | . . . . Robots Corrupted . | . . . . Combat Hostiles . | . . . . Parts Fried . | . . . . Impact Corruptions . | . . . . Robots Melted . | . . . . Combat Hostiles . | . . . . Parts Melted 4 | . . . 4 Heat Transferred 75 | 75 . . . Parts Sabotaged . | . . . . Parts Stolen 1 | . . . 1 Parts Stripped . | . . . . Power Chain Reactions . | . . . . Alert | -11 -10 -10 -9 ------- Run | Yrd Mat Sub Scr Maximum Alert Level 1 | . 1 . . Low Security (%) 73 | 100 72 . . Level 1 26 | . 27 . . Level 2 . | . . . . Level 3 . | . . . . Level 4 . | . . . . Level 5 . | . . . . High Security . | . . . . Max Security . | . . . . Peak Influence 241 | 5 241 . . Initial 3 | . 3 . . Average 146 | . 150 . . Influence Increases 684 | 5 679 . . Destroy 0b10 Robot/C 360 | . 360 . . Destroy 0b10 Robot/NC 75 | 5 70 . . Destroy Leader 76 | . 76 . . Successful Hack 36 | . 36 . . Disable Machine 15 | . 15 . . Destroy Structure 2 | . 2 . . Lose Combat Pursuer 120 | . 120 . . Influence Decreases 684 | . 526 158 . Entered New Map 79 | . 2 77 . Time Decay 595 | . 514 81 . Lost Part 10 | . 10 . . Squads Dispatched 4 | . 4 . . Investigation 2 | . 2 . . Extermination . | . . . . Reinforcement 2 | . 2 . . Assault . | . . . . Garrison . | . . . . Intercept . | . . . . Searches Triggered . | . . . . Construction Impeded . | . . . . Haulers Reinforced . | . . . . Active Scanning Responses . | . . . . Cargo Convoy Interrupts . | . . . . Stealth | -11 -10 -10 -9 --------- Run | Yrd Mat Sub Scr Distress Signals 3 | . 3 . . Communications Jammed . | . . . . Distress Signals . | . . . . Times Spotted 63 | . 36 2 25 Peak Tracking Total 6 | . 6 1 6 Tactical Retreats 6 | . 6 . . ECM-based Alert Blocks 2 | . 2 . . Traps | -11 -10 -10 -9 ------- Run | Yrd Mat Sub Scr Traps Triggered 2 | . 2 . . Indirectly . | . . . . Trap Hack Attempts . | . . . . Triggered . | . . . . Disarmed . | . . . . Reprogrammed . | . . . . Reused . | . . . . Traps Extracted . | . . . . Installed . | . . . . Triggered . | . . . . Machines | -11 -10 -10 -9 ---------- Run | Yrd Mat Sub Scr Machines Disabled 1 | . 1 . . Max in Single Turn 1 | . 1 . . Machines Repaired . | . . . . Machines Dismantled . | . . . . Machines Sabotaged . | . . . . Overloaded Fab Kills . | . . . . Hacking | -11 -10 -10 -9 --------- Run | Yrd Mat Sub Scr Machines Accessed 18 | . 7 . 11 Terminals 6 | . 6 . . Fabricators . | . . . . Repair Stations . | . . . . Recycling Units 1 | . 1 . . Scanalyzers . | . . . . Garrison Access . | . . . . Total Hacks 97 | . 21 . 76 Successful 91 | . 15 . 76 Failed 6 | . 6 . . Catastrophic . | . . . . Database Lockouts . | . . . . Manual 9 | . 8 . 1 Terminals 15 | . 15 . . Fabricators . | . . . . Repair Stations . | . . . . Recycling Units 6 | . 6 . . Scanalyzers . | . . . . Garrison Access . | . . . . Terminal Hacks 84 | . 8 . 76 Record 76 | . 1 . 75 Robot Analysis 1 | . 1 . . Prototype ID Bank 1 | . 1 . . Alert Level 1 | . 1 . . Locate Traps 2 | . 2 . . Zone Layout 2 | . 2 . . Proto ID Catalog 1 | . . . 1 Fabricator Hacks . | . . . . Repair Station Hacks . | . . . . Recycling Unit Hacks 4 | . 4 . . Report Inventory 2 | . 2 . . Retrieve Matter 2 | . 2 . . Scanalyzer . | . . . . Garrison Access Hacks . | . . . . Unauthorized Hacks 3 | . 3 . . Terminals 3 | . 3 . . Botnet 3 | . 3 . . Fabricators . | . . . . Repair Stations . | . . . . Recycling Units . | . . . . Scanalyzers . | . . . . Garrison Access . | . . . . Data Cores Recovered . | . . . . Used . | . . . . Hacking Detections 5 | . 5 . . Full Trace Events . | . . . . Feedback Events . | . . . . Feedback Blocked . | . . . . Robot Schematics Acquired . | . . . . Robots Built . | . . . . Authchips . | . . . . Time . | . . . . Total Robot Build Rating . | . . . . Part Schematics Acquired . | . . . . Parts Built . | . . . . Authchips . | . . . . Time . | . . . . Total Part Build Rating . | . . . . Part Studies Acquired . | . . . . Parts Repaired . | . . . . Time . | . . . . Parts Recycled . | . . . . Recycled Matter . | . . . . Retrieved Matter 409 | . 409 . . Retrieved Components . | . . . . Parts Scanalyzed . | . . . . Part Schematics Acquired . | . . . . Parts Damaged . | . . . . Bothacking | -11 -10 -10 -9 ------------ Run | Yrd Mat Sub Scr Used RIF Installer . | . . . . Robots Hacked 4 | . 4 . . Non-combat 4 | . 4 . . Combat . | . . . . Robot Hacks Applied 6 | . 6 . . parse_system 3 | . 3 . . no_distress 2 | . 2 . . find_recycling 1 | . 1 . . Relay Couplers Released . | . . . . Fabnet Peak Effective % . | . . . . Robots Rewired . | . . . . Allies Hacked . | . . . . Hacks Repelled . | . . . . Allies | -11 -10 -10 -9 -------- Run | Yrd Mat Sub Scr Total Allies . | . . . . Largest Group . | . . . . Highest-Rated Group . | . . . . Highest-Rated Ally . | . . . . Total Orders . | . . . . Ally Attacks . | . . . . Total Damage . | . . . . Kills . | . . . . Allies Corrupted . | . . . . Allies Melted 5 | . . . 5 Intel | -11 -10 -10 -9 ------- Run | Yrd Mat Sub Scr Active Infowar (turns) 1751 | 3 1180 568 . Terrain 520 | . . 520 . Seismic 1147 | 3 1144 . . ECM 84 | . 36 48 . Robot Analysis Total 1 | . 1 . . Derelict Logs Recovered 1 | . . . 1 Drone Launches . | . . . . Drone Recoveries . | . . . . Exploration | -11 -10 -10 -9 ------------- Run | Yrd Mat Sub Scr Turns Passed 5075 | 59 2083 840 2093 Spaces Moved 3832 | 33 1347 629 1823 Core 2 | 2 . . . Treads . | . . . . Legs . | . . . . Wheels 3830 | 31 1347 629 1823 Hover . | . . . . Flight . | . . . . Fastest Speed 50 | 50 90 105 99 Average Speed 105 | 96 99 109 108 Slowest Speed 150 | 100 105 145 150 Overloaded Moves . | . . . . Propulsion Burnouts . | . . . . Robots Hopped . | . . . . Potential Cave-ins . | . . . . Cave-ins Triggered . | . . . . Exploration Rate (%) 52 | 3 93 23 89 Regions Visited 3 Branch Regions 2 Pre-discovered Areas . | . . . . Known Exits Taken . | . . . . Unknown Exits Taken 3 | 1 1 1 . Scrap Searched 9 | . . 3 6 Spaces Dug . | . . . . Terrain Destroyed 50 | . . 49 1 Melee . | . . . . Projectile 1 | . . . 1 AOE 49 | . . 49 . Terrain Rammed . | . . . . Walls Destroyed . | . . . . Machines Disabled . | . . . . Actions | -11 -10 -10 -9 --------- Run | Yrd Mat Sub Scr Total 4622 | 46 1907 759 1910 Wait 540 | . 399 104 37 Move 3829 | 32 1346 628 1823 Hop . | . . . . Pick Up 31 | . 15 3 13 Fast Attach 20 | 7 8 2 3 Attach 14 | . 4 4 6 Detach 13 | . 10 1 2 Swap 18 | . 13 4 1 Drop 19 | . 11 1 7 Fire 130 | 5 95 12 18 Melee 6 | . 6 . . Ram 2 | 2 . . . Kick . | . . . . Crush . | . . . . Escape Stasis . | . . . . Rewire . | . . . . Trap . | . . . . Miscellaneous . | . . . . Route ------- -11/Scrapyard -10/Materials (discovered 5 exits: [*Mat x3] / [*Min] / [*Sub]) -10/Subcaves -9/Scraptown (discovered 2 exits: Fac x2) History --------- Turn | Location | Event 19 | -11/Scrapyard | Discovered new exit (range 16) 60 | -11/Scrapyard | Entered Materials 101 | -10/Materials | Discovered new exit (range 16) 314 | -10/Materials | Build established: Mutant 744 | -10/Materials | Discovered new exit (range 8) 801 | -10/Materials | Discovered new exit (range 16) 1193 | -10/Materials | Discovered new exit (range 16) 2125 | -10/Materials | Discovered new exit (range 12) 2143 | -10/Materials | Entered Subcaves 2144 | -10/Subcaves | Approached by a straggling Scientist 2573 | -10/Subcaves | Core integrity fell below 50% 2754 | -10/Subcaves | Lost 4 parts (1p1n1u1w) 2802 | -10/Subcaves | Shifting Twisted Machinery released Sub. Beam Cannon 2804 | -10/Subcaves | Shifting Twisted Machinery released Sub. Beam Cannon 2832 | -10/Subcaves | Scientist uncovered a shortcut to Scraptown 2983 | -10/Subcaves | Entered Scraptown 3345 | -9/Scraptown | Visited Cyclists 3373 | -9/Scraptown | Visited SPCMW 3405 | -9/Scraptown | Visited Spacefarers 3463 | -9/Scraptown | Visited Bundlers 3523 | -9/Scraptown | Visited TADAMA 3559 | -9/Scraptown | Visited UFD Registry 3559 | -9/Scraptown | Registered with UFD as "Macesink" 3624 | -9/Scraptown | Entered Cyclist Reading Room 3696 | -9/Scraptown | Scanned Subdweller tech in exchange for log data 3700 | -9/Scraptown | Learned Factory trap positions 4020 | -9/Scraptown | Visited Derelict Rescue Squad 4027 | -9/Scraptown | Found DRS Beacon 4058 | -9/Scraptown | Visited A0-MCA Data Center 4064 | -9/Scraptown | Given a C rating by A0-MCA 4066 | -9/Scraptown | Found A0-MCA's Component Scanner 4100 | -9/Scraptown | Visited Research Penetration Think Tank 4304 | -9/Scraptown | Visited Scrap Suit Storage 4346 | -9/Scraptown | Visited Abandonware Association 4361 | -9/Scraptown | Learned abandonware demo "TRNCOAT.EXE" 4361 | -9/Scraptown | Learned abandonware demo "MELTYB.EXE" 4381 | -9/Scraptown | Visited Modified Component R&D 4441 | -9/Scraptown | Visited Chapter 10 4489 | -9/Scraptown | Visited Botcube Research 4514 | -9/Scraptown | Visited Science Guys 4658 | -9/Scraptown | Met Optimus 4658 | -9/Scraptown | Accepted into 0bPrime 4784 | -9/Scraptown | Civil war broke out across Scraptown 4858 | -9/Scraptown | Identified exit to Factory 4881 | -9/Scraptown | Lost 9 allies 4944 | -9/Scraptown | Core integrity fell below 20% 5031 | -9/Scraptown | Lost 6 allies 5076 | -9/Scraptown | Destroyed by 6I-4QP(j) with Overtuned Pulse Rifle Last Messages --------------- 05021_ Mak. Salvage Targeting Computer melted. 05021_ XL-ADM(j) destroyed. 05022_ Acquired 8 matter. 05037_ Acquired Lgt. Deuterium Engine. 05040_ Acquired 10 matter. 05050_ Penetrated by Bolt. 05051_ P9-8O5(g) suffers critical hit (Burn). 05052_ P9-8O5(g) destroyed. 05053_ 31-DWJ(j): "Make peace, not pieces!" 05055_ Bolt penetrates Wall. 05061_ 0P-WTR(h) switches sides: "I hope I'm right about this..." 05064_ 0P-WTR(h) critical meltdown. 05067_ Mak. Salvage Targeting Computer melted. 05067_ MB-30U(j) destroyed. 05073_ Lgt. Deuterium Engine melted. 05073_ 5J-4N5(j) destroyed. 05073_ Switching to secondary target: FA-UPZ(j). 05073_ Wheel destroyed. 05074_ Arm. Wheel destroyed. Map ----- +----------------------------------------------------+ | | | | | | | | | | | ?????????????????????????????????????????????????? | | ?????????????????????????????????????????????????? | | ?????????????????????????????????????????????????? | | ?????????????????????????????????????????????????? | | ?????????????????????????????????????????????????? | | ?????????????????????????????????????????????????? | | ?????????????????????????????????????????????????? | | ?????????????????????????????????????????????????? | | ?????????????????????????????????????????????????? | | ?????????????????????????????????????????????????? | | ?????????????????????????????????????????????????? | | ?????????????????????????????????????????????????? | | ?????????????????????????????????????????????????? | | ???????????????????????####??????????????????????? | | ?????????????????????###%*##??????